[Event "Titled Tuesday Blitz October 25 Late 2022"]
[White "Saucey, Michel"]
[Black "Golubev, Mikhail"]
[WhiteFideId "601845"]
[BlackFideId "14100983"]
[WhiteElo "2253"]
[BlackElo "2374"]
[Result "0-1"]
[Round "02"]
[TimeControl "180+1"]
[Date "2022.10.26"]
[WhiteClock "0:00:03"]
[BlackClock "0:00:22"]

1. d4 {[%clk 0:03:00]}  Nf6 {[%clk 0:02:59]} 2. Nf3 {[%clk 0:03:00]}  d6 {[%clk 0:02:58]} 3. Nc3 {[%clk 0:02:58]}  Nbd7 {[%clk 0:02:55]} 4. e4 {[%clk 0:02:57]}  e5 {[%clk 0:02:55]} 5. Bc4 {[%clk 0:02:56]}  Be7 {[%clk 0:02:55]} 6. O-O {[%clk 0:02:54]}  O-O {[%clk 0:02:55]} 7. a4 {[%clk 0:02:54]}  c6 {[%clk 0:02:53]} 8. Re1 {[%clk 0:02:53]}  a5 {[%clk 0:02:50]} 9. Ba2 {[%clk 0:02:49]}  Re8 {[%clk 0:02:37]} 10. Nh4 {[%clk 0:02:48]}  exd4 {[%clk 0:02:33]} 11. Qxd4 {[%clk 0:02:46]}  Nc5 {[%clk 0:02:18]} 12. Nf5 {[%clk 0:02:41]}  Bxf5 {[%clk 0:02:10]} 13. exf5 {[%clk 0:02:41]}  d5 {[%clk 0:02:10]} 14. Bf4 {[%clk 0:02:12]}  Qd7 {[%clk 0:02:02]} 15. Bg3 {[%clk 0:02:05]}  Rad8 {[%clk 0:01:28]} 16. h3 {[%clk 0:02:01]}  Nce4 {[%clk 0:01:19]} 17. Nxe4 {[%clk 0:01:22]}  Nxe4 {[%clk 0:01:18]} 18. Rxe4 {[%clk 0:01:11]}  dxe4 {[%clk 0:01:14]} 19. Qxe4 {[%clk 0:01:07]}  Bf6 {[%clk 0:01:00]} 20. Qg4 {[%clk 0:00:59]}  Bxb2 {[%clk 0:00:56]} 21. Rf1 {[%clk 0:00:58]}  Bf6 {[%clk 0:00:53]} 22. Kh1 {[%clk 0:00:45]}  Qd4 {[%clk 0:00:44]} 23. Qh5 {[%clk 0:00:45]}  Rd7 {[%clk 0:00:34]} 24. Bb3 {[%clk 0:00:35]}  b5 {[%clk 0:00:29]} 25. f4 {[%clk 0:00:15]}  bxa4 {[%clk 0:00:28]} 26. Ba2 {[%clk 0:00:11]}  Qb2 {[%clk 0:00:26]} 27. Bc4 {[%clk 0:00:08]}  Qxc2 {[%clk 0:00:26]} 28. Ba6 {[%clk 0:00:03]}  a3 {[%clk 0:00:22]} 0-1


[Site "https://www.chess.com"]

[Event "Titled Tuesday Blitz October 25 Late 2022"]
[White "Schuster, Karsten"]
[Black "Tokhirjonova, Gulrukhbegim"]
[WhiteFideId "4611071"]
[BlackFideId "14203626"]
[WhiteElo "2294"]
[BlackElo "2236"]
[Result "0-1"]
[Round "02"]
[TimeControl "180+1"]
[Date "2022.10.26"]
[WhiteClock "0:01:38"]
[BlackClock "0:01:53"]

1. d4 {[%clk 0:02:58]}  Nf6 {[%clk 0:02:59]} 2. c4 {[%clk 0:02:58]}  e6 {[%clk 0:02:59]} 3. Nc3 {[%clk 0:02:58]}  Bb4 {[%clk 0:02:59]} 4. Qc2 {[%clk 0:02:58]}  O-O {[%clk 0:02:58]} 5. a3 {[%clk 0:02:56]}  Bxc3+ {[%clk 0:02:57]} 6. Qxc3 {[%clk 0:02:57]}  d5 {[%clk 0:02:57]} 7. Bg5 {[%clk 0:02:58]}  h6 {[%clk 0:02:56]} 8. Bxf6 {[%clk 0:02:56]}  Qxf6 {[%clk 0:02:55]} 9. cxd5 {[%clk 0:02:57]}  exd5 {[%clk 0:02:55]} 10. e3 {[%clk 0:02:57]}  c6 {[%clk 0:02:55]} 11. Ne2 {[%clk 0:02:57]}  Bf5 {[%clk 0:02:51]} 12. Ng3 {[%clk 0:02:58]}  Bg6 {[%clk 0:02:48]} 13. Be2 {[%clk 0:02:58]}  Nd7 {[%clk 0:02:48]} 14. O-O {[%clk 0:02:57]}  Rfe8 {[%clk 0:02:47]} 15. b4 {[%clk 0:02:50]}  Rac8 {[%clk 0:02:47]} 16. Rfc1 {[%clk 0:02:49]}  a6 {[%clk 0:02:47]} 17. a4 {[%clk 0:02:48]}  Nf8 {[%clk 0:02:45]} 18. Qb3 {[%clk 0:02:34]}  Ne6 {[%clk 0:02:36]} 19. b5 {[%clk 0:02:31]}  axb5 {[%clk 0:02:34]} 20. axb5 {[%clk 0:02:31]}  c5 {[%clk 0:02:31]} 21. dxc5 {[%clk 0:02:22]}  Rxc5 {[%clk 0:02:30]} 22. Rab1 {[%clk 0:02:12]}  Rxc1+ {[%clk 0:02:27]} 23. Rxc1 {[%clk 0:02:12]}  d4 {[%clk 0:02:27]} 24. e4 {[%clk 0:02:03]}  h5 {[%clk 0:02:15]} 25. Bxh5 {[%clk 0:01:52]}  Bxh5 {[%clk 0:02:02]} 26. Nxh5 {[%clk 0:01:52]}  Qg5 {[%clk 0:02:01]} 27. f4 {[%clk 0:01:48]}  Qxh5 {[%clk 0:01:58]} 28. g3 {[%clk 0:01:47]}  Qe2 {[%clk 0:01:55]} 29. b6 {[%clk 0:01:42]}  d3 {[%clk 0:01:54]} 30. Rd1 {[%clk 0:01:38]}  Rd8 {[%clk 0:01:53]} 0-1


[Site "https://www.chess.com"]

[Event "Titled Tuesday Blitz October 25 Late 2022"]
[White "Silva Rosas, Natalia"]
[Black "Buchenau, Frank"]
[WhiteFideId "3000575"]
[BlackFideId "4604350"]
[WhiteElo "1752"]
[BlackElo "2157"]
[Result "0-1"]
[Round "02"]
[TimeControl "180+1"]
[Date "2022.10.26"]
[WhiteClock "0:00:02"]
[BlackClock "0:00:09"]

1. e4 {[%clk 0:03:00]}  e6 {[%clk 0:02:59]} 2. d3 {[%clk 0:02:59]}  d5 {[%clk 0:02:59]} 3. Nd2 {[%clk 0:02:59]}  Nf6 {[%clk 0:02:59]} 4. Ngf3 {[%clk 0:02:58]}  b6 {[%clk 0:02:59]} 5. e5 {[%clk 0:02:57]}  Ng8 {[%clk 0:02:57]} 6. d4 {[%clk 0:02:56]}  Ne7 {[%clk 0:02:57]} 7. c4 {[%clk 0:02:51]}  Bb7 {[%clk 0:02:51]} 8. c5 {[%clk 0:02:48]}  Nf5 {[%clk 0:02:42]} 9. cxb6 {[%clk 0:02:40]}  axb6 {[%clk 0:02:42]} 10. Bb5+ {[%clk 0:02:36]}  c6 {[%clk 0:02:39]} 11. Bd3 {[%clk 0:02:34]}  Ba6 {[%clk 0:02:39]} 12. Bxa6 {[%clk 0:02:24]}  Rxa6 {[%clk 0:02:39]} 13. O-O {[%clk 0:02:23]}  Be7 {[%clk 0:02:38]} 14. b3 {[%clk 0:02:08]}  O-O {[%clk 0:02:36]} 15. Bb2 {[%clk 0:02:07]}  c5 {[%clk 0:02:35]} 16. dxc5 {[%clk 0:02:05]}  bxc5 {[%clk 0:02:34]} 17. Re1 {[%clk 0:01:56]}  Nc6 {[%clk 0:02:34]} 18. Nf1 {[%clk 0:01:55]}  Qa8 {[%clk 0:02:33]} 19. a3 {[%clk 0:01:50]}  Rb8 {[%clk 0:02:31]} 20. Ng3 {[%clk 0:01:48]}  Nxg3 {[%clk 0:02:29]} 21. hxg3 {[%clk 0:01:47]}  Rab6 {[%clk 0:02:26]} 22. Nd2 {[%clk 0:01:43]}  Na5 {[%clk 0:02:15]} 23. Re3 {[%clk 0:01:34]}  d4 {[%clk 0:01:51]} 24. Rf3 {[%clk 0:01:26]}  Qd5 {[%clk 0:01:47]} 25. b4 {[%clk 0:01:18]}  Nc6 {[%clk 0:01:37]} 26. Nb3 {[%clk 0:01:08]}  Nxe5 {[%clk 0:01:31]} 27. Rf4 {[%clk 0:00:54]}  Bg5 {[%clk 0:01:17]} 28. Nxc5 {[%clk 0:00:46]}  Bxf4 {[%clk 0:01:11]} 29. gxf4 {[%clk 0:00:45]}  Nc6 {[%clk 0:01:02]} 30. Qd3 {[%clk 0:00:39]}  Rd8 {[%clk 0:00:49]} 31. Re1 {[%clk 0:00:33]}  g6 {[%clk 0:00:44]} 32. g4 {[%clk 0:00:30]}  e5 {[%clk 0:00:31]} 33. f5 {[%clk 0:00:28]}  Qa2 {[%clk 0:00:25]} 34. fxg6 {[%clk 0:00:20]}  hxg6 {[%clk 0:00:24]} 35. Bc1 {[%clk 0:00:10]}  Qd5 {[%clk 0:00:21]} 36. Bg5 {[%clk 0:00:10]}  Re8 {[%clk 0:00:18]} 37. Qh3 {[%clk 0:00:08]}  Ne7 {[%clk 0:00:13]} 38. Bf6 {[%clk 0:00:08]}  Rxf6 {[%clk 0:00:12]} 39. g5 {[%clk 0:00:07]}  Rf5 {[%clk 0:00:11]} 40. f4 {[%clk 0:00:05]}  exf4 {[%clk 0:00:10]} 41. Rxe7 {[%clk 0:00:05]}  Rxg5+ {[%clk 0:00:09]} 42. Kf2 {[%clk 0:00:03]}  Rxe7 {[%clk 0:00:09]} 43. Ne4 {[%clk 0:00:02]}  Rxe4 {[%clk 0:00:09]} 44. Qc8+ {[%clk 0:00:02]}  Kg7 {[%clk 0:00:09]} 0-1


[Site "https://www.chess.com"]

[Event "Titled Tuesday Blitz October 25 Late 2022"]
[White "Sivakumar, Shaaketh"]
[Black "Li, Ben"]
[WhiteFideId "30940176"]
[BlackFideId "2089980"]
[WhiteElo "2174"]
[BlackElo "2267"]
[Result "1-0"]
[Round "02"]
[TimeControl "180+1"]
[Date "2022.10.26"]
[WhiteClock "0:00:20"]
[BlackClock "0:00:08"]

1. d4 {[%clk 0:03:00]}  d5 {[%clk 0:02:57]} 2. Nf3 {[%clk 0:03:00]}  Nf6 {[%clk 0:02:57]} 3. Bf4 {[%clk 0:02:59]}  c5 {[%clk 0:02:57]} 4. e3 {[%clk 0:02:59]}  Nc6 {[%clk 0:02:56]} 5. Nbd2 {[%clk 0:02:59]}  e6 {[%clk 0:02:57]} 6. c3 {[%clk 0:02:59]}  Bd6 {[%clk 0:02:57]} 7. Bg3 {[%clk 0:02:59]}  O-O {[%clk 0:02:57]} 8. Bd3 {[%clk 0:02:58]}  b6 {[%clk 0:02:57]} 9. e4 {[%clk 0:02:55]}  Be7 {[%clk 0:02:57]} 10. e5 {[%clk 0:02:55]}  Nh5 {[%clk 0:02:56]} 11. Nf1 {[%clk 0:02:52]}  a5 {[%clk 0:02:35]} 12. h4 {[%clk 0:02:52]}  Ba6 {[%clk 0:01:53]} 13. Ng5 {[%clk 0:02:30]}  Bxd3 {[%clk 0:01:43]} 14. Qxd3 {[%clk 0:02:31]}  g6 {[%clk 0:01:41]} 15. Nd2 {[%clk 0:02:03]}  cxd4 {[%clk 0:01:38]} 16. cxd4 {[%clk 0:02:02]}  Nb4 {[%clk 0:01:37]} 17. Qb1 {[%clk 0:02:01]}  Rc8 {[%clk 0:01:36]} 18. O-O {[%clk 0:01:52]}  Nc2 {[%clk 0:01:35]} 19. Ndf3 {[%clk 0:01:48]}  h6 {[%clk 0:01:24]} 20. Nh3 {[%clk 0:01:42]}  Nxa1 {[%clk 0:01:15]} 21. Qxa1 {[%clk 0:01:42]}  Rc2 {[%clk 0:01:14]} 22. Ne1 {[%clk 0:01:38]}  Rc4 {[%clk 0:01:10]} 23. Qd1 {[%clk 0:01:38]}  Bxh4 {[%clk 0:01:05]} 24. Bxh4 {[%clk 0:01:38]}  Qxh4 {[%clk 0:01:06]} 25. Nf3 {[%clk 0:01:36]}  Qg4 {[%clk 0:01:03]} 26. Qd2 {[%clk 0:01:30]}  Kg7 {[%clk 0:01:00]} 27. b3 {[%clk 0:01:29]}  Rc6 {[%clk 0:00:51]} 28. Nh2 {[%clk 0:01:29]}  Qh4 {[%clk 0:00:51]} 29. f3 {[%clk 0:01:06]}  Rfc8 {[%clk 0:00:45]} 30. Ng4 {[%clk 0:01:06]}  Rc2 {[%clk 0:00:43]} 31. Qxh6+ {[%clk 0:01:05]}  Kg8 {[%clk 0:00:43]} 32. Nf6+ {[%clk 0:01:01]}  Qxf6 {[%clk 0:00:42]} 33. exf6 {[%clk 0:01:00]}  Nxf6 {[%clk 0:00:42]} 34. Nf4 {[%clk 0:00:58]}  Ne8 {[%clk 0:00:35]} 35. Nxg6 {[%clk 0:00:55]}  fxg6 {[%clk 0:00:35]} 36. Qxg6+ {[%clk 0:00:56]}  Ng7 {[%clk 0:00:35]} 37. Re1 {[%clk 0:00:52]}  R2c6 {[%clk 0:00:31]} 38. Re5 {[%clk 0:00:45]}  Rf8 {[%clk 0:00:29]} 39. Rh5 {[%clk 0:00:43]}  Rf7 {[%clk 0:00:28]} 40. Qh7+ {[%clk 0:00:42]}  Kf8 {[%clk 0:00:28]} 41. Rg5 {[%clk 0:00:41]}  Nf5 {[%clk 0:00:27]} 42. Qh8+ {[%clk 0:00:40]}  Ke7 {[%clk 0:00:27]} 43. Rg8 {[%clk 0:00:39]}  Rc7 {[%clk 0:00:24]} 44. Rd8 {[%clk 0:00:35]}  Nd6 {[%clk 0:00:19]} 45. Qh4+ {[%clk 0:00:34]}  Rf6 {[%clk 0:00:19]} 46. Rf8 {[%clk 0:00:34]}  Kxf8 {[%clk 0:00:13]} 47. Qxf6+ {[%clk 0:00:33]}  Nf7 {[%clk 0:00:13]} 48. Qxe6 {[%clk 0:00:33]}  Rb7 {[%clk 0:00:12]} 49. Qxd5 {[%clk 0:00:32]}  Re7 {[%clk 0:00:12]} 50. g4 {[%clk 0:00:30]}  Re1+ {[%clk 0:00:12]} 51. Kf2 {[%clk 0:00:29]}  Ra1 {[%clk 0:00:13]} 52. g5 {[%clk 0:00:29]}  Rxa2+ {[%clk 0:00:13]} 53. Ke3 {[%clk 0:00:28]}  Rg2 {[%clk 0:00:12]} 54. f4 {[%clk 0:00:26]}  Rg3+ {[%clk 0:00:12]} 55. Kf2 {[%clk 0:00:26]}  Rg4 {[%clk 0:00:12]} 56. Kf3 {[%clk 0:00:24]}  Rg1 {[%clk 0:00:12]} 57. Qa8+ {[%clk 0:00:24]}  Kg7 {[%clk 0:00:11]} 58. Qb7 {[%clk 0:00:24]}  Rf1+ {[%clk 0:00:09]} 59. Kg3 {[%clk 0:00:25]}  Rg1+ {[%clk 0:00:09]} 60. Kf2 {[%clk 0:00:25]}  Rg4 {[%clk 0:00:10]} 61. Kf3 {[%clk 0:00:22]}  Rg1 {[%clk 0:00:10]} 62. Qxb6 {[%clk 0:00:22]}  Rf1+ {[%clk 0:00:09]} 63. Kg3 {[%clk 0:00:22]}  Rg1+ {[%clk 0:00:10]} 64. Kf2 {[%clk 0:00:22]}  Rd1 {[%clk 0:00:10]} 65. Qxa5 {[%clk 0:00:20]}  Rd2+ {[%clk 0:00:08]} 66. Qxd2 {[%clk 0:00:20]} 1-0


[Site "https://www.chess.com"]

[Event "Titled Tuesday Blitz October 25 Late 2022"]
[White "Souleidis, Georgios"]
[Black "Ohanyan, Emin"]
[WhiteFideId "4206827"]
[BlackFideId "13312022"]
[WhiteElo "2401"]
[BlackElo "2302"]
[Result "1-0"]
[Round "02"]
[TimeControl "180+1"]
[Date "2022.10.26"]
[WhiteClock "0:00:28"]
[BlackClock "0:00:27"]

1. e4 {[%clk 0:02:58]}  e5 {[%clk 0:02:42]} 2. Nc3 {[%clk 0:02:57]}  Nf6 {[%clk 0:02:41]} 3. d4 {[%clk 0:02:57]}  exd4 {[%clk 0:02:39]} 4. Qxd4 {[%clk 0:02:58]}  Nc6 {[%clk 0:02:38]} 5. Qd3 {[%clk 0:02:59]}  Bb4 {[%clk 0:02:36]} 6. Bd2 {[%clk 0:02:59]}  O-O {[%clk 0:02:32]} 7. O-O-O {[%clk 0:02:59]}  Re8 {[%clk 0:02:33]} 8. Nge2 {[%clk 0:03:00]}  d6 {[%clk 0:02:24]} 9. Bg5 {[%clk 0:02:59]}  h6 {[%clk 0:02:22]} 10. Bxf6 {[%clk 0:02:59]}  Qxf6 {[%clk 0:02:23]} 11. Nd5 {[%clk 0:03:00]}  Qd8 {[%clk 0:02:20]} 12. Nxb4 {[%clk 0:03:00]}  Nxb4 {[%clk 0:02:21]} 13. Qd2 {[%clk 0:03:00]}  Nc6 {[%clk 0:02:12]} 14. Nc3 {[%clk 0:02:59]}  Be6 {[%clk 0:01:49]} 15. f3 {[%clk 0:02:59]}  a6 {[%clk 0:01:45]} 16. g4 {[%clk 0:02:58]}  b5 {[%clk 0:01:38]} 17. h4 {[%clk 0:02:28]}  b4 {[%clk 0:01:33]} 18. Nd5 {[%clk 0:02:27]}  a5 {[%clk 0:01:32]} 19. g5 {[%clk 0:02:25]}  h5 {[%clk 0:01:27]} 20. Rg1 {[%clk 0:02:16]}  Ne5 {[%clk 0:01:24]} 21. Be2 {[%clk 0:01:36]}  Bxd5 {[%clk 0:01:21]} 22. Qxd5 {[%clk 0:01:31]}  Ng6 {[%clk 0:01:22]} 23. Bc4 {[%clk 0:01:11]}  Qe7 {[%clk 0:01:15]} 24. Qf5 {[%clk 0:00:59]}  Nxh4 {[%clk 0:01:04]} 25. Qh3 {[%clk 0:00:59]}  Ng6 {[%clk 0:01:01]} 26. Qxh5 {[%clk 0:00:57]}  Kf8 {[%clk 0:00:57]} 27. Bd5 {[%clk 0:00:42]}  Rab8 {[%clk 0:00:50]} 28. f4 {[%clk 0:00:42]}  Qd7 {[%clk 0:00:29]} 29. f5 {[%clk 0:00:42]}  Ne5 {[%clk 0:00:28]} 30. Qh8+ {[%clk 0:00:42]}  Ke7 {[%clk 0:00:28]} 31. Qxg7 {[%clk 0:00:43]}  Kd8 {[%clk 0:00:26]} 32. Qf6+ {[%clk 0:00:40]}  Kc8 {[%clk 0:00:26]} 33. g6 {[%clk 0:00:40]}  fxg6 {[%clk 0:00:25]} 34. fxg6 {[%clk 0:00:41]}  c6 {[%clk 0:00:25]} 35. g7 {[%clk 0:00:32]}  cxd5 {[%clk 0:00:25]} 36. g8=Q {[%clk 0:00:33]}  Rxg8 {[%clk 0:00:26]} 37. Rxg8+ {[%clk 0:00:33]}  Kc7 {[%clk 0:00:27]} 38. Rg7 {[%clk 0:00:28]} 1-0


[Site "https://www.chess.com"]

[Event "Titled Tuesday Blitz October 25 Late 2022"]
[White "Stanisz, Patryk"]
[Black "Tang, Andrew"]
[WhiteFideId "1123106"]
[BlackFideId "2059630"]
[WhiteElo "2069"]
[BlackElo "2581"]
[Result "0-1"]
[Round "02"]
[TimeControl "180+1"]
[Date "2022.10.26"]
[WhiteClock "0:00:14"]
[BlackClock "0:01:47"]

1. d4 {[%clk 0:03:00]}  e5 {[%clk 0:02:58]} 2. g3 {[%clk 0:02:56]}  exd4 {[%clk 0:02:54]} 3. Qxd4 {[%clk 0:02:57]}  Nc6 {[%clk 0:02:54]} 4. Qd1 {[%clk 0:02:57]}  h5 {[%clk 0:02:50]} 5. h4 {[%clk 0:02:51]}  Nf6 {[%clk 0:02:50]} 6. Bg5 {[%clk 0:02:50]}  d5 {[%clk 0:02:46]} 7. Bg2 {[%clk 0:02:42]}  Bc5 {[%clk 0:02:46]} 8. e3 {[%clk 0:02:41]}  Qd6 {[%clk 0:02:30]} 9. c3 {[%clk 0:02:09]}  Bg4 {[%clk 0:02:23]} 10. Qb3 {[%clk 0:01:59]}  O-O-O {[%clk 0:02:19]} 11. Bxf6 {[%clk 0:01:28]}  Qxf6 {[%clk 0:02:17]} 12. Nd2 {[%clk 0:01:29]}  Rhe8 {[%clk 0:02:13]} 13. Nf1 {[%clk 0:01:06]}  Bb6 {[%clk 0:01:55]} 14. Bh3 {[%clk 0:00:48]}  d4 {[%clk 0:01:51]} 15. Bxg4+ {[%clk 0:00:42]}  hxg4 {[%clk 0:01:51]} 16. O-O-O {[%clk 0:00:24]}  dxe3 {[%clk 0:01:47]} 17. Rxd8+ {[%clk 0:00:14]}  Rxd8 {[%clk 0:01:47]} 18. Nxe3 {[%clk 0:00:14]}  Bxe3+ {[%clk 0:01:46]} 19. fxe3 {[%clk 0:00:14]}  Qf1+ {[%clk 0:01:47]} 0-1


[Site "https://www.chess.com"]

[Event "Titled Tuesday Blitz October 25 Late 2022"]
[White "Storey, Charles H"]
[Black "Cortes Orihuela, Javier"]
[WhiteFideId "406686"]
[BlackFideId "3414329"]
[WhiteElo "2252"]
[BlackElo "2080"]
[Result "0-1"]
[Round "02"]
[TimeControl "180+1"]
[Date "2022.10.26"]
[WhiteClock "0:01:40"]
[BlackClock "0:00:05"]

1. c4 {[%clk 0:03:00]}  e5 {[%clk 0:02:58]} 2. g3 {[%clk 0:03:00]}  c6 {[%clk 0:02:57]} 3. Bg2 {[%clk 0:03:00]}  d5 {[%clk 0:02:58]} 4. cxd5 {[%clk 0:03:00]}  cxd5 {[%clk 0:02:59]} 5. d4 {[%clk 0:03:00]}  e4 {[%clk 0:02:58]} 6. Nc3 {[%clk 0:03:00]}  Nf6 {[%clk 0:02:58]} 7. Bg5 {[%clk 0:03:00]}  Nbd7 {[%clk 0:02:57]} 8. e3 {[%clk 0:03:00]}  Bd6 {[%clk 0:02:55]} 9. Nge2 {[%clk 0:03:00]}  h6 {[%clk 0:02:53]} 10. Bxf6 {[%clk 0:03:00]}  Nxf6 {[%clk 0:02:53]} 11. Qb3 {[%clk 0:03:00]}  O-O {[%clk 0:02:33]} 12. O-O {[%clk 0:02:59]}  Bg4 {[%clk 0:02:11]} 13. Qxb7 {[%clk 0:02:47]}  Rb8 {[%clk 0:02:11]} 14. Qxa7 {[%clk 0:02:46]}  Rxb2 {[%clk 0:02:10]} 15. Nf4 {[%clk 0:02:36]}  Bxf4 {[%clk 0:02:04]} 16. exf4 {[%clk 0:02:36]}  Qc8 {[%clk 0:01:29]} 17. Nd1 {[%clk 0:02:32]}  Bxd1 {[%clk 0:01:17]} 18. Raxd1 {[%clk 0:02:30]}  Qc2 {[%clk 0:01:09]} 19. a4 {[%clk 0:02:27]}  e3 {[%clk 0:00:51]} 20. Rc1 {[%clk 0:02:27]}  exf2+ {[%clk 0:00:48]} 21. Kh1 {[%clk 0:02:27]}  Qe2 {[%clk 0:00:36]} 22. a5 {[%clk 0:02:24]}  Ne4 {[%clk 0:00:32]} 23. Qd7 {[%clk 0:02:09]}  Nd2 {[%clk 0:00:20]} 24. Qxd5 {[%clk 0:02:01]}  Nxf1 {[%clk 0:00:19]} 25. Rxf1 {[%clk 0:02:01]}  Ra2 {[%clk 0:00:15]} 26. f5 {[%clk 0:01:58]}  Qd2 {[%clk 0:00:13]} 27. f6 {[%clk 0:01:56]}  Rxa5 {[%clk 0:00:13]} 28. Qf3 {[%clk 0:01:55]}  Ra2 {[%clk 0:00:12]} 29. fxg7 {[%clk 0:01:54]}  Kxg7 {[%clk 0:00:12]} 30. Qg4+ {[%clk 0:01:54]}  Qg5 {[%clk 0:00:11]} 31. Qf3 {[%clk 0:01:50]}  Qf6 {[%clk 0:00:10]} 32. Qb3 {[%clk 0:01:47]}  Re2 {[%clk 0:00:06]} 33. d5 {[%clk 0:01:46]}  Rfe8 {[%clk 0:00:05]} 34. h3 {[%clk 0:01:45]}  Re1 {[%clk 0:00:06]} 35. Kh2 {[%clk 0:01:46]}  Rxf1 {[%clk 0:00:06]} 36. Bxf1 {[%clk 0:01:46]}  Re1 {[%clk 0:00:05]} 37. Qd3 {[%clk 0:01:47]}  Qe5 {[%clk 0:00:03]} 38. d6 {[%clk 0:01:47]}  Re3 {[%clk 0:00:03]} 39. Qxe3 {[%clk 0:01:37]}  Qxe3 {[%clk 0:00:03]} 40. d7 {[%clk 0:01:38]}  Qd4 {[%clk 0:00:03]} 41. Bb5 {[%clk 0:01:38]}  f1=Q {[%clk 0:00:03]} 42. Bxf1 {[%clk 0:01:38]}  Qxd7 {[%clk 0:00:03]} 43. Bg2 {[%clk 0:01:39]}  Qd6 {[%clk 0:00:03]} 44. h4 {[%clk 0:01:39]}  h5 {[%clk 0:00:03]} 45. Kh3 {[%clk 0:01:40]}  Kf6 {[%clk 0:00:03]} 46. Bf3 {[%clk 0:01:40]}  Qe5 {[%clk 0:00:04]} 47. Bd1 {[%clk 0:01:39]}  Qe1 {[%clk 0:00:03]} 48. Bxh5 {[%clk 0:01:38]}  Qh1+ {[%clk 0:00:03]} 49. Kg4 {[%clk 0:01:39]}  Qd1+ {[%clk 0:00:03]} 50. Kf4 {[%clk 0:01:39]}  Qxh5 {[%clk 0:00:03]} 51. Ke3 {[%clk 0:01:39]}  Qe5+ {[%clk 0:00:04]} 52. Kf3 {[%clk 0:01:39]}  Qc3+ {[%clk 0:00:04]} 53. Kg2 {[%clk 0:01:40]}  Kg6 {[%clk 0:00:04]} 54. Kh3 {[%clk 0:01:41]}  Kh5 {[%clk 0:00:05]} 55. Kg2 {[%clk 0:01:39]}  Kg4 {[%clk 0:00:05]} 56. Kh1 {[%clk 0:01:40]}  Qf3+ {[%clk 0:00:05]} 0-1


[Site "https://www.chess.com"]

[Event "Titled Tuesday Blitz October 25 Late 2022"]
[White "Stoyanov, Tsvetan"]
[Black "Jimenez Almeida, Luis David"]
[WhiteFideId "2917173"]
[BlackFideId "22242244"]
[WhiteElo "2349"]
[BlackElo "2158"]
[Result "1-0"]
[Round "02"]
[TimeControl "180+1"]
[Date "2022.10.26"]
[WhiteClock "0:00:05"]
[BlackClock "0:00:15"]

1. Nf3 {[%clk 0:03:00]}  Nf6 {[%clk 0:02:57]} 2. g3 {[%clk 0:02:59]}  d5 {[%clk 0:02:55]} 3. Bg2 {[%clk 0:02:59]}  e6 {[%clk 0:02:56]} 4. O-O {[%clk 0:02:58]}  Be7 {[%clk 0:02:56]} 5. d4 {[%clk 0:02:58]}  O-O {[%clk 0:02:56]} 6. c4 {[%clk 0:02:58]}  dxc4 {[%clk 0:02:56]} 7. Ne5 {[%clk 0:02:58]}  Nc6 {[%clk 0:02:55]} 8. Bxc6 {[%clk 0:02:44]}  bxc6 {[%clk 0:02:56]} 9. Nxc6 {[%clk 0:02:43]}  Qe8 {[%clk 0:02:57]} 10. Nxe7+ {[%clk 0:02:44]}  Qxe7 {[%clk 0:02:58]} 11. Qa4 {[%clk 0:02:43]}  e5 {[%clk 0:02:58]} 12. dxe5 {[%clk 0:02:34]}  Qxe5 {[%clk 0:02:58]} 13. Qxc4 {[%clk 0:02:34]}  Be6 {[%clk 0:02:59]} 14. Qc2 {[%clk 0:02:31]}  Bf5 {[%clk 0:02:57]} 15. Qc4 {[%clk 0:01:45]}  Be6 {[%clk 0:02:56]} 16. Qf4 {[%clk 0:01:03]}  Qxe2 {[%clk 0:02:53]} 17. Nc3 {[%clk 0:01:03]}  Qh5 {[%clk 0:02:53]} 18. Qg5 {[%clk 0:00:53]}  Qf3 {[%clk 0:02:44]} 19. Qf4 {[%clk 0:00:48]}  Qh5 {[%clk 0:02:44]} 20. Qg5 {[%clk 0:00:36]}  Qh3 {[%clk 0:02:44]} 21. Qh4 {[%clk 0:00:33]}  Qxh4 {[%clk 0:02:41]} 22. gxh4 {[%clk 0:00:33]}  Rab8 {[%clk 0:02:41]} 23. b3 {[%clk 0:00:33]}  Rfd8 {[%clk 0:02:33]} 24. Bf4 {[%clk 0:00:27]}  Rd4 {[%clk 0:02:18]} 25. Bg3 {[%clk 0:00:21]}  Rc8 {[%clk 0:02:02]} 26. Rad1 {[%clk 0:00:21]}  Rxd1 {[%clk 0:01:53]} 27. Rxd1 {[%clk 0:00:22]}  c5 {[%clk 0:01:53]} 28. Nb5 {[%clk 0:00:22]}  h6 {[%clk 0:01:47]} 29. Rc1 {[%clk 0:00:16]}  a6 {[%clk 0:01:45]} 30. Nd6 {[%clk 0:00:16]}  Rc6 {[%clk 0:01:43]} 31. Nb7 {[%clk 0:00:14]}  c4 {[%clk 0:01:42]} 32. Na5 {[%clk 0:00:14]}  Rc5 {[%clk 0:01:17]} 33. Nxc4 {[%clk 0:00:14]}  Ne4 {[%clk 0:01:12]} 34. Bf4 {[%clk 0:00:15]}  g5 {[%clk 0:01:10]} 35. Be3 {[%clk 0:00:15]}  Rc8 {[%clk 0:01:09]} 36. hxg5 {[%clk 0:00:15]}  hxg5 {[%clk 0:01:09]} 37. Ne5 {[%clk 0:00:14]}  Rd8 {[%clk 0:01:08]} 38. Nc6 {[%clk 0:00:11]}  Rd3 {[%clk 0:01:05]} 39. Nb4 {[%clk 0:00:11]}  Rd6 {[%clk 0:01:04]} 40. Kg2 {[%clk 0:00:10]}  a5 {[%clk 0:01:03]} 41. Nc2 {[%clk 0:00:10]}  f5 {[%clk 0:01:01]} 42. f4 {[%clk 0:00:07]}  g4 {[%clk 0:00:58]} 43. Nd4 {[%clk 0:00:07]}  Bd7 {[%clk 0:00:58]} 44. Rc7 {[%clk 0:00:07]}  Nf6 {[%clk 0:00:55]} 45. Ra7 {[%clk 0:00:04]}  Nd5 {[%clk 0:00:55]} 46. Kf2 {[%clk 0:00:05]}  a4 {[%clk 0:00:42]} 47. bxa4 {[%clk 0:00:04]}  Nc3 {[%clk 0:00:39]} 48. a5 {[%clk 0:00:05]}  Kh7 {[%clk 0:00:29]} 49. a6 {[%clk 0:00:04]}  Kg6 {[%clk 0:00:29]} 50. Ra8 {[%clk 0:00:04]}  Ne4+ {[%clk 0:00:27]} 51. Ke2 {[%clk 0:00:04]}  Rb6 {[%clk 0:00:27]} 52. a7 {[%clk 0:00:04]}  Rb2+ {[%clk 0:00:22]} 53. Kd3 {[%clk 0:00:04]}  Rxa2 {[%clk 0:00:14]} 54. Rg8+ {[%clk 0:00:04]}  Kh7 {[%clk 0:00:14]} 55. a8=Q {[%clk 0:00:05]}  Rxa8 {[%clk 0:00:14]} 56. Rxa8 {[%clk 0:00:06]}  g3 {[%clk 0:00:14]} 57. hxg3 {[%clk 0:00:05]}  Nxg3 {[%clk 0:00:15]} 58. Ra7 {[%clk 0:00:05]} 1-0


[Site "https://www.chess.com"]